[Event "Titled Tuesday Blitz March 21 Early 2023"]
[White "Gatterer, Florian"]
[Black "Hernandez Bonilla, Amelia"]
[WhiteFideId "811688"]
[BlackFideId "3900193"]
[WhiteElo "2221"]
[BlackElo "2193"]
[Result "1/2-1/2"]
[Round "05"]
[TimeControl "180+2"]
[Date "2023.03.21"]
[WhiteClock "0:02:10"]
[BlackClock "0:01:59"]

1. d4 {[%clk 0:03:00]}  Nf6 {[%clk 0:02:59]} 2. Nf3 {[%clk 0:03:00]}  e6 {[%clk 0:02:59]} 3. g3 {[%clk 0:02:59]}  d5 {[%clk 0:02:50]} 4. Bg2 {[%clk 0:02:57]}  Be7 {[%clk 0:02:50]} 5. O-O {[%clk 0:02:57]}  O-O {[%clk 0:02:50]} 6. c4 {[%clk 0:02:57]}  dxc4 {[%clk 0:02:40]} 7. Qc2 {[%clk 0:02:55]}  c5 {[%clk 0:02:39]} 8. dxc5 {[%clk 0:02:52]}  Bxc5 {[%clk 0:02:33]} 9. Ne5 {[%clk 0:02:49]}  Nbd7 {[%clk 0:02:23]} 10. Nxc4 {[%clk 0:02:48]}  Qe7 {[%clk 0:02:15]} 11. Nc3 {[%clk 0:02:47]}  a6 {[%clk 0:02:14]} 12. a3 {[%clk 0:02:45]}  Rb8 {[%clk 0:02:09]} 13. b4 {[%clk 0:02:44]}  Ba7 {[%clk 0:02:07]} 14. Bf4 {[%clk 0:02:30]}  e5 {[%clk 0:02:06]} 15. Bg5 {[%clk 0:02:30]}  h6 {[%clk 0:02:01]} 16. Nd5 {[%clk 0:02:28]}  Qe6 {[%clk 0:01:59]} 17. Nc7 {[%clk 0:02:10]} 1/2-1/2


[Site "https://www.chess.com"]

[Event "Titled Tuesday Blitz March 21 Early 2023"]
[White "Jimenez Jimenez, Leandro"]
[Black "Bongo Akanga Ndjila, Barthelemy"]
[WhiteFideId "6415253"]
[BlackFideId "10609431"]
[WhiteElo "2263"]
[BlackElo "1768"]
[Result "1-0"]
[Round "05"]
[TimeControl "180+2"]
[Date "2023.03.21"]
[WhiteClock "0:00:27"]
[BlackClock "0:00:49"]

1. d4 {[%clk 0:03:00]}  d5 {[%clk 0:02:44]} 2. c4 {[%clk 0:03:00]}  e6 {[%clk 0:02:44]} 3. Nc3 {[%clk 0:03:00]}  a6 {[%clk 0:02:43]} 4. c5 {[%clk 0:02:59]}  Nc6 {[%clk 0:02:38]} 5. Nf3 {[%clk 0:02:59]}  g6 {[%clk 0:02:39]} 6. Bg5 {[%clk 0:02:57]}  f6 {[%clk 0:02:37]} 7. Bh4 {[%clk 0:02:54]}  Bg7 {[%clk 0:02:37]} 8. e4 {[%clk 0:02:51]}  Nge7 {[%clk 0:02:34]} 9. exd5 {[%clk 0:02:43]}  Nxd5 {[%clk 0:02:34]} 10. Bc4 {[%clk 0:02:44]}  O-O {[%clk 0:02:32]} 11. O-O {[%clk 0:02:42]}  Nce7 {[%clk 0:02:31]} 12. Re1 {[%clk 0:02:37]}  Nf5 {[%clk 0:02:28]} 13. Bg3 {[%clk 0:02:34]}  Nxg3 {[%clk 0:02:27]} 14. hxg3 {[%clk 0:02:35]}  c6 {[%clk 0:02:22]} 15. Ne4 {[%clk 0:02:20]}  Qa5 {[%clk 0:02:09]} 16. a3 {[%clk 0:02:15]}  Bd7 {[%clk 0:02:00]} 17. Nd6 {[%clk 0:02:13]}  Qc7 {[%clk 0:01:54]} 18. b4 {[%clk 0:02:03]}  b6 {[%clk 0:01:54]} 19. Nd2 {[%clk 0:01:47]}  a5 {[%clk 0:01:40]} 20. Qb3 {[%clk 0:01:41]}  axb4 {[%clk 0:01:27]} 21. axb4 {[%clk 0:01:40]}  Rxa1 {[%clk 0:01:27]} 22. Rxa1 {[%clk 0:01:40]}  bxc5 {[%clk 0:01:27]} 23. bxc5 {[%clk 0:01:34]}  Rb8 {[%clk 0:01:25]} 24. Qa4 {[%clk 0:01:06]}  f5 {[%clk 0:01:23]} 25. Nf3 {[%clk 0:01:03]}  e5 {[%clk 0:01:13]} 26. dxe5 {[%clk 0:01:00]}  Be6 {[%clk 0:01:10]} 27. Ng5 {[%clk 0:00:55]}  Qe7 {[%clk 0:01:04]} 28. Nxe6 {[%clk 0:00:55]}  Qxe6 {[%clk 0:01:02]} 29. Qxc6 {[%clk 0:00:55]}  Qxe5 {[%clk 0:00:50]} 30. Bxd5+ {[%clk 0:00:46]}  Kf8 {[%clk 0:00:49]} 31. Ra7 {[%clk 0:00:27]} 1-0


[Site "https://www.chess.com"]

[Event "Titled Tuesday Blitz March 21 Early 2023"]
[White "rikchessmx"]
[Black "Tarnowska, Aleksandra"]
[BlackFideId "1180967"]
[WhiteElo "2404"]
[BlackElo "1776"]
[Result "1-0"]
[Round "05"]
[TimeControl "180+2"]
[Date "2023.03.21"]
[WhiteClock "0:02:20"]
[BlackClock "0:00:07"]

1. e4 {[%clk 0:03:00]}  c5 {[%clk 0:02:59]} 2. Nf3 {[%clk 0:03:00]}  e6 {[%clk 0:02:59]} 3. d4 {[%clk 0:03:00]}  cxd4 {[%clk 0:03:00]} 4. Nxd4 {[%clk 0:03:01]}  a6 {[%clk 0:03:00]} 5. Nc3 {[%clk 0:03:01]}  Qc7 {[%clk 0:03:00]} 6. Bd3 {[%clk 0:03:00]}  Nc6 {[%clk 0:03:00]} 7. Nxc6 {[%clk 0:03:00]}  bxc6 {[%clk 0:02:59]} 8. O-O {[%clk 0:03:01]}  d5 {[%clk 0:02:54]} 9. Qe2 {[%clk 0:02:58]}  d4 {[%clk 0:02:34]} 10. Nd1 {[%clk 0:02:54]}  Nf6 {[%clk 0:02:16]} 11. f4 {[%clk 0:02:52]}  Be7 {[%clk 0:02:11]} 12. b3 {[%clk 0:02:52]}  Bb7 {[%clk 0:01:58]} 13. Nb2 {[%clk 0:02:51]}  c5 {[%clk 0:01:50]} 14. Nc4 {[%clk 0:02:51]}  Nd7 {[%clk 0:01:25]} 15. Bd2 {[%clk 0:02:49]}  O-O {[%clk 0:00:59]} 16. Rf3 {[%clk 0:02:43]}  e5 {[%clk 0:00:43]} 17. Rh3 {[%clk 0:02:38]}  exf4 {[%clk 0:00:34]} 18. Bxf4 {[%clk 0:02:37]}  Qxf4 {[%clk 0:00:33]} 19. Rf1 {[%clk 0:02:34]}  Qg5 {[%clk 0:00:19]} 20. Rg3 {[%clk 0:02:31]}  Qh6 {[%clk 0:00:19]} 21. Rh3 {[%clk 0:02:31]}  Qg5 {[%clk 0:00:18]} 22. Rf5 {[%clk 0:02:30]}  Qg6 {[%clk 0:00:17]} 23. Rg3 {[%clk 0:02:26]}  Qh6 {[%clk 0:00:16]} 24. Rh5 {[%clk 0:02:22]}  Qf6 {[%clk 0:00:07]} 25. e5 {[%clk 0:02:20]} 1-0


[Site "https://www.chess.com"]

[Event "Titled Tuesday Blitz March 21 Early 2023"]
[White "babbilator"]
[Black "Valle Maytin, Luis Enrique"]
[BlackFideId "3503666"]
[WhiteElo "2223"]
[BlackElo "2225"]
[Result "0-1"]
[Round "05"]
[TimeControl "180+2"]
[Date "2023.03.21"]
[WhiteClock "0:00:07"]
[BlackClock "0:00:38"]

1. e4 {[%clk 0:03:00]}  c6 {[%clk 0:02:59]} 2. d4 {[%clk 0:02:57]}  d5 {[%clk 0:03:00]} 3. e5 {[%clk 0:02:57]}  c5 {[%clk 0:03:00]} 4. dxc5 {[%clk 0:02:53]}  e6 {[%clk 0:02:59]} 5. a3 {[%clk 0:02:44]}  Bxc5 {[%clk 0:02:57]} 6. Nf3 {[%clk 0:02:44]}  Ne7 {[%clk 0:02:56]} 7. b4 {[%clk 0:02:43]}  Bb6 {[%clk 0:02:56]} 8. Bb2 {[%clk 0:02:43]}  Ng6 {[%clk 0:02:55]} 9. Bd3 {[%clk 0:02:42]}  a5 {[%clk 0:02:55]} 10. O-O {[%clk 0:02:36]}  Nd7 {[%clk 0:02:38]} 11. Re1 {[%clk 0:02:33]}  Qe7 {[%clk 0:02:26]} 12. Qd2 {[%clk 0:02:13]}  O-O {[%clk 0:02:06]} 13. c4 {[%clk 0:01:35]}  axb4 {[%clk 0:02:00]} 14. axb4 {[%clk 0:01:35]}  Rxa1 {[%clk 0:02:01]} 15. Bxa1 {[%clk 0:01:35]}  dxc4 {[%clk 0:02:01]} 16. Bxc4 {[%clk 0:01:35]}  Rd8 {[%clk 0:02:01]} 17. Qb2 {[%clk 0:00:54]}  Nh4 {[%clk 0:01:30]} 18. Nbd2 {[%clk 0:00:46]}  Nf8 {[%clk 0:01:23]} 19. g3 {[%clk 0:00:26]}  Nf5 {[%clk 0:01:12]} 20. Qb3 {[%clk 0:00:22]}  Bd7 {[%clk 0:01:06]} 21. Ne4 {[%clk 0:00:16]}  Bc6 {[%clk 0:01:05]} 22. h4 {[%clk 0:00:15]}  Qd7 {[%clk 0:00:54]} 23. Kh2 {[%clk 0:00:13]}  Bxe4 {[%clk 0:00:51]} 24. Rxe4 {[%clk 0:00:13]}  Bxf2 {[%clk 0:00:52]} 25. Rg4 {[%clk 0:00:11]}  Qc6 {[%clk 0:00:42]} 26. Ng5 {[%clk 0:00:08]}  h5 {[%clk 0:00:38]} 27. Rf4 {[%clk 0:00:07]}  Bxg3+ {[%clk 0:00:38]} 0-1


[Site "https://www.chess.com"]

[Event "Titled Tuesday Blitz March 21 Early 2023"]
[White "Sabar, Ethmane Daouda"]
[Black "Tanmay Jain"]
[WhiteFideId "19600097"]
[BlackFideId "45015481"]
[WhiteElo "1950"]
[BlackElo "2032"]
[Result "0-1"]
[Round "05"]
[TimeControl "180+2"]
[Date "2023.03.21"]
[WhiteClock "0:00:07"]
[BlackClock "0:00:12"]

1. e4 {[%clk 0:03:00]}  c6 {[%clk 0:02:57]} 2. d4 {[%clk 0:03:00]}  g6 {[%clk 0:02:57]} 3. Nc3 {[%clk 0:03:00]}  Bg7 {[%clk 0:02:57]} 4. Be3 {[%clk 0:03:01]}  d5 {[%clk 0:02:57]} 5. f3 {[%clk 0:03:00]}  e6 {[%clk 0:02:55]} 6. Qd2 {[%clk 0:02:59]}  b6 {[%clk 0:02:53]} 7. O-O-O {[%clk 0:02:59]}  Bb7 {[%clk 0:02:53]} 8. Nge2 {[%clk 0:02:52]}  Nd7 {[%clk 0:02:53]} 9. Kb1 {[%clk 0:02:51]}  Qe7 {[%clk 0:02:53]} 10. e5 {[%clk 0:02:39]}  O-O-O {[%clk 0:02:51]} 11. Bg5 {[%clk 0:02:35]}  f6 {[%clk 0:02:52]} 12. exf6 {[%clk 0:02:36]}  Bxf6 {[%clk 0:02:51]} 13. Bxf6 {[%clk 0:02:35]}  Ngxf6 {[%clk 0:02:52]} 14. Nf4 {[%clk 0:02:31]}  e5 {[%clk 0:02:52]} 15. dxe5 {[%clk 0:02:19]}  Nxe5 {[%clk 0:02:53]} 16. Re1 {[%clk 0:02:14]}  Qd6 {[%clk 0:02:53]} 17. Bd3 {[%clk 0:02:03]}  Rhe8 {[%clk 0:02:51]} 18. h3 {[%clk 0:01:57]}  Kb8 {[%clk 0:02:49]} 19. Re2 {[%clk 0:01:56]}  a6 {[%clk 0:02:27]} 20. Rhe1 {[%clk 0:01:49]}  c5 {[%clk 0:02:25]} 21. Rf2 {[%clk 0:01:33]}  c4 {[%clk 0:02:20]} 22. Bf1 {[%clk 0:01:33]}  d4 {[%clk 0:02:20]} 23. Ne4 {[%clk 0:01:31]}  Nxe4 {[%clk 0:02:17]} 24. fxe4 {[%clk 0:01:32]}  Qc5 {[%clk 0:02:04]} 25. Nd5 {[%clk 0:01:25]}  c3 {[%clk 0:01:56]} 26. bxc3 {[%clk 0:01:21]}  Bxd5 {[%clk 0:01:45]} 27. exd5 {[%clk 0:01:11]}  dxc3 {[%clk 0:01:42]} 28. Qf4 {[%clk 0:01:01]}  Rxd5 {[%clk 0:01:10]} 29. Ka1 {[%clk 0:00:35]}  Red8 {[%clk 0:00:39]} 30. Bd3 {[%clk 0:00:15]}  Qa3 {[%clk 0:00:20]} 31. Rb1 {[%clk 0:00:14]}  Ra5 {[%clk 0:00:18]} 32. Bc4 {[%clk 0:00:12]}  Rd1 {[%clk 0:00:13]} 33. Rf1 {[%clk 0:00:07]}  Qb2# {[%clk 0:00:12]} 0-1


[Site "https://www.chess.com"]

[Event "Titled Tuesday Blitz March 21 Early 2023"]
[White "Kuchava, Ana"]
[Black "Manukian, Artak"]
[WhiteFideId "13605348"]
[BlackFideId "13301373"]
[WhiteElo "2001"]
[BlackElo "2130"]
[Result "0-1"]
[Round "05"]
[TimeControl "180+2"]
[Date "2023.03.21"]
[WhiteClock "0:00:01"]
[BlackClock "0:00:09"]

1. d4 {[%clk 0:03:00]}  d5 {[%clk 0:02:57]} 2. Nf3 {[%clk 0:02:59]}  Nf6 {[%clk 0:02:57]} 3. c4 {[%clk 0:02:56]}  dxc4 {[%clk 0:02:55]} 4. e3 {[%clk 0:02:52]}  e6 {[%clk 0:02:55]} 5. Bxc4 {[%clk 0:02:49]}  c5 {[%clk 0:02:52]} 6. O-O {[%clk 0:02:44]}  a6 {[%clk 0:02:52]} 7. a4 {[%clk 0:02:32]}  Nc6 {[%clk 0:02:51]} 8. Nc3 {[%clk 0:02:28]}  cxd4 {[%clk 0:02:49]} 9. exd4 {[%clk 0:02:27]}  Be7 {[%clk 0:02:46]} 10. Bg5 {[%clk 0:02:21]}  O-O {[%clk 0:02:42]} 11. Qd3 {[%clk 0:02:15]}  Nb4 {[%clk 0:02:39]} 12. Qe2 {[%clk 0:02:12]}  b6 {[%clk 0:02:34]} 13. Rad1 {[%clk 0:02:08]}  Bb7 {[%clk 0:02:34]} 14. Ne5 {[%clk 0:02:03]}  Nfd5 {[%clk 0:02:28]} 15. Bd2 {[%clk 0:01:48]}  Rc8 {[%clk 0:02:18]} 16. Bb3 {[%clk 0:01:30]}  Nf6 {[%clk 0:02:10]} 17. Bc1 {[%clk 0:01:17]}  Nbd5 {[%clk 0:02:02]} 18. Rd3 {[%clk 0:01:08]}  Nxc3 {[%clk 0:01:55]} 19. bxc3 {[%clk 0:01:07]}  Ne4 {[%clk 0:01:47]} 20. Bb2 {[%clk 0:00:48]}  Bf6 {[%clk 0:01:40]} 21. f4 {[%clk 0:00:42]}  g6 {[%clk 0:01:36]} 22. Re3 {[%clk 0:00:30]}  Nd6 {[%clk 0:01:32]} 23. Ba3 {[%clk 0:00:27]}  Re8 {[%clk 0:01:12]} 24. Bxd6 {[%clk 0:00:14]}  Qxd6 {[%clk 0:01:11]} 25. f5 {[%clk 0:00:15]}  Bxe5 {[%clk 0:00:56]} 26. dxe5 {[%clk 0:00:15]}  Qc5 {[%clk 0:00:52]} 27. f6 {[%clk 0:00:15]}  Red8 {[%clk 0:00:45]} 28. Kh1 {[%clk 0:00:15]}  Bd5 {[%clk 0:00:37]} 29. Bc2 {[%clk 0:00:14]}  Bc4 {[%clk 0:00:34]} 30. Bd3 {[%clk 0:00:11]}  a5 {[%clk 0:00:20]} 31. Bxc4 {[%clk 0:00:09]}  Qxc4 {[%clk 0:00:21]} 32. Qf2 {[%clk 0:00:09]}  Rd2 {[%clk 0:00:15]} 33. Qg1 {[%clk 0:00:08]}  Rcd8 {[%clk 0:00:13]} 34. h3 {[%clk 0:00:08]}  Qxa4 {[%clk 0:00:12]} 35. Qh2 {[%clk 0:00:07]}  Qh4 {[%clk 0:00:12]} 36. Rg3 {[%clk 0:00:06]}  Rd1 {[%clk 0:00:11]} 37. Rg1 {[%clk 0:00:04]}  Rxg1+ {[%clk 0:00:10]} 38. Kxg1 {[%clk 0:00:05]}  Qe4 {[%clk 0:00:10]} 39. Rf3 {[%clk 0:00:02]}  Rd1+ {[%clk 0:00:09]} 40. Kf2 {[%clk 0:00:01]}  Qe1# {[%clk 0:00:09]} 0-1


[Site "https://www.chess.com"]

[Event "Titled Tuesday Blitz March 21 Early 2023"]
[White "th3d4rkness"]
[Black "Fajdetic, Hrvoje"]
[BlackFideId "14501945"]
[WhiteElo "2118"]
[BlackElo "2185"]
[Result "0-1"]
[Round "05"]
[TimeControl "180+2"]
[Date "2023.03.21"]
[WhiteClock "0:00:04"]
[BlackClock "0:00:40"]

1. e4 {[%clk 0:03:00]}  e6 {[%clk 0:02:25]} 2. d3 {[%clk 0:02:59]}  c5 {[%clk 0:02:25]} 3. Nd2 {[%clk 0:02:57]}  Nc6 {[%clk 0:02:25]} 4. Ngf3 {[%clk 0:02:56]}  d6 {[%clk 0:02:23]} 5. g3 {[%clk 0:02:56]}  e5 {[%clk 0:02:23]} 6. Bg2 {[%clk 0:02:56]}  g6 {[%clk 0:02:24]} 7. O-O {[%clk 0:02:56]}  Bg7 {[%clk 0:02:25]} 8. Re1 {[%clk 0:02:55]}  Nge7 {[%clk 0:02:25]} 9. Nf1 {[%clk 0:02:55]}  h6 {[%clk 0:02:26]} 10. h3 {[%clk 0:02:54]}  O-O {[%clk 0:02:26]} 11. c3 {[%clk 0:02:54]}  f5 {[%clk 0:02:26]} 12. Ne3 {[%clk 0:02:38]}  f4 {[%clk 0:02:21]} 13. Nd5 {[%clk 0:02:35]}  Nxd5 {[%clk 0:02:20]} 14. exd5 {[%clk 0:02:35]}  Ne7 {[%clk 0:02:20]} 15. c4 {[%clk 0:02:28]}  g5 {[%clk 0:02:19]} 16. Rb1 {[%clk 0:02:06]}  a5 {[%clk 0:02:18]} 17. a3 {[%clk 0:02:06]}  Bf5 {[%clk 0:02:06]} 18. b4 {[%clk 0:02:02]}  axb4 {[%clk 0:02:02]} 19. axb4 {[%clk 0:02:00]}  b6 {[%clk 0:02:02]} 20. bxc5 {[%clk 0:01:56]}  bxc5 {[%clk 0:02:03]} 21. g4 {[%clk 0:01:55]}  Bg6 {[%clk 0:02:00]} 22. Qc2 {[%clk 0:01:36]}  Bf6 {[%clk 0:01:45]} 23. Nd2 {[%clk 0:01:34]}  h5 {[%clk 0:01:41]} 24. Be4 {[%clk 0:01:32]}  Kg7 {[%clk 0:01:40]} 25. Bxg6 {[%clk 0:01:28]}  Nxg6 {[%clk 0:01:41]} 26. Ne4 {[%clk 0:01:27]}  hxg4 {[%clk 0:01:38]} 27. hxg4 {[%clk 0:01:27]}  Ra7 {[%clk 0:01:34]} 28. Rb6 {[%clk 0:01:19]}  Rd7 {[%clk 0:01:32]} 29. f3 {[%clk 0:01:11]}  Nh4 {[%clk 0:01:31]} 30. Rb2 {[%clk 0:00:21]}  Nxf3+ {[%clk 0:01:29]} 31. Kf2 {[%clk 0:00:21]}  Nxe1 {[%clk 0:01:26]} 32. Kxe1 {[%clk 0:00:21]}  Rh8 {[%clk 0:01:26]} 33. Qg2 {[%clk 0:00:20]}  Qa5+ {[%clk 0:01:17]} 34. Kd1 {[%clk 0:00:20]}  Qa4+ {[%clk 0:01:12]} 35. Ke1 {[%clk 0:00:18]}  Bd8 {[%clk 0:01:09]} 36. Nf2 {[%clk 0:00:15]}  Ba5+ {[%clk 0:01:08]} 37. Kf1 {[%clk 0:00:15]}  Bc3 {[%clk 0:01:02]} 38. Re2 {[%clk 0:00:10]}  Qa1 {[%clk 0:00:56]} 39. Qe4 {[%clk 0:00:08]}  Qxc1+ {[%clk 0:00:54]} 40. Kg2 {[%clk 0:00:08]}  f3+ {[%clk 0:00:45]} 41. Qxf3 {[%clk 0:00:07]}  Rf7 {[%clk 0:00:42]} 42. Qe4 {[%clk 0:00:04]}  Bd4 {[%clk 0:00:40]} 0-1


[Site "https://www.chess.com"]

[Event "Titled Tuesday Blitz March 21 Early 2023"]
[White "Michalski, Olaf"]
[Black "Thiel, Thomas"]
[WhiteFideId "1106740"]
[BlackFideId "4615964"]
[WhiteElo "2173"]
[BlackElo "2239"]
[Result "0-1"]
[Round "05"]
[TimeControl "180+2"]
[Date "2023.03.21"]
[WhiteClock "0:00:08"]
[BlackClock "0:01:18"]

1. d4 {[%clk 0:03:00]}  Nf6 {[%clk 0:02:58]} 2. c4 {[%clk 0:02:59]}  g6 {[%clk 0:02:58]} 3. Nc3 {[%clk 0:02:58]}  d5 {[%clk 0:02:57]} 4. cxd5 {[%clk 0:02:56]}  Nxd5 {[%clk 0:02:58]} 5. e4 {[%clk 0:02:56]}  Nxc3 {[%clk 0:02:58]} 6. bxc3 {[%clk 0:02:57]}  Bg7 {[%clk 0:02:57]} 7. Be3 {[%clk 0:02:58]}  c5 {[%clk 0:02:53]} 8. Qd2 {[%clk 0:02:59]}  O-O {[%clk 0:02:50]} 9. Rc1 {[%clk 0:03:00]}  Qa5 {[%clk 0:02:46]} 10. Nf3 {[%clk 0:03:00]}  cxd4 {[%clk 0:02:27]} 11. cxd4 {[%clk 0:02:52]}  Qxd2+ {[%clk 0:02:26]} 12. Nxd2 {[%clk 0:02:52]}  e6 {[%clk 0:02:23]} 13. Be2 {[%clk 0:02:17]}  Nc6 {[%clk 0:02:19]} 14. Nb3 {[%clk 0:02:16]}  Rd8 {[%clk 0:02:16]} 15. Rc4 {[%clk 0:01:56]}  a5 {[%clk 0:02:07]} 16. a4 {[%clk 0:01:51]}  Nb4 {[%clk 0:02:03]} 17. O-O {[%clk 0:01:27]}  b6 {[%clk 0:02:02]} 18. Rc7 {[%clk 0:01:19]}  Bd7 {[%clk 0:01:55]} 19. Ra1 {[%clk 0:00:18]}  Rac8 {[%clk 0:01:51]} 20. Rb7 {[%clk 0:00:17]}  Rb8 {[%clk 0:01:43]} 21. Rc7 {[%clk 0:00:16]}  Bc6 {[%clk 0:01:35]} 22. f3 {[%clk 0:00:11]}  Rdc8 {[%clk 0:01:29]} 23. Ra7 {[%clk 0:00:10]}  Nc2 {[%clk 0:01:20]} 24. Bf4 {[%clk 0:00:08]}  Nxa1 {[%clk 0:01:18]} 0-1


[Site "https://www.chess.com"]

[Event "Titled Tuesday Blitz March 21 Early 2023"]
[White "Latreche, Khadidja"]
[Black "Barria Santos, Jose Guilherme"]
[WhiteFideId "7901780"]
[BlackFideId "1939300"]
[WhiteElo "1869"]
[BlackElo "2301"]
[Result "0-1"]
[Round "05"]
[TimeControl "180+2"]
[Date "2023.03.21"]
[WhiteClock "0:00:20"]
[BlackClock "0:00:12"]

1. e4 {[%clk 0:03:00]}  c5 {[%clk 0:03:00]} 2. Nf3 {[%clk 0:02:59]}  d6 {[%clk 0:03:00]} 3. d4 {[%clk 0:02:59]}  cxd4 {[%clk 0:03:01]} 4. Nxd4 {[%clk 0:03:00]}  Nf6 {[%clk 0:03:02]} 5. f3 {[%clk 0:03:01]}  a6 {[%clk 0:03:02]} 6. c4 {[%clk 0:03:01]}  e5 {[%clk 0:03:02]} 7. Nc2 {[%clk 0:02:59]}  Be7 {[%clk 0:03:01]} 8. Nc3 {[%clk 0:03:00]}  Be6 {[%clk 0:02:59]} 9. Be2 {[%clk 0:02:58]}  Nbd7 {[%clk 0:02:59]} 10. O-O {[%clk 0:02:57]}  Rc8 {[%clk 0:02:59]} 11. Ne3 {[%clk 0:02:54]}  Nb6 {[%clk 0:02:53]} 12. b3 {[%clk 0:02:51]}  O-O {[%clk 0:02:52]} 13. Ncd5 {[%clk 0:02:45]}  Bxd5 {[%clk 0:02:49]} 14. exd5 {[%clk 0:02:45]}  a5 {[%clk 0:02:47]} 15. a4 {[%clk 0:02:42]}  Nbd7 {[%clk 0:02:46]} 16. Bb2 {[%clk 0:02:42]}  b6 {[%clk 0:02:45]} 17. Nf5 {[%clk 0:02:34]}  Nc5 {[%clk 0:02:38]} 18. f4 {[%clk 0:02:31]}  e4 {[%clk 0:02:33]} 19. Bg4 {[%clk 0:02:27]}  Rc7 {[%clk 0:02:29]} 20. Bh3 {[%clk 0:02:18]}  Re8 {[%clk 0:02:29]} 21. g4 {[%clk 0:02:14]}  Bf8 {[%clk 0:02:27]} 22. g5 {[%clk 0:02:14]}  Nfd7 {[%clk 0:02:21]} 23. Qg4 {[%clk 0:02:13]}  g6 {[%clk 0:01:18]} 24. Nh6+ {[%clk 0:02:10]}  Bxh6 {[%clk 0:01:18]} 25. gxh6 {[%clk 0:02:10]}  Nd3 {[%clk 0:01:17]} 26. Bd4 {[%clk 0:02:07]}  Nf6 {[%clk 0:01:09]} 27. Qh4 {[%clk 0:01:53]}  Nd7 {[%clk 0:00:47]} 28. Qg3 {[%clk 0:01:49]}  Rb7 {[%clk 0:00:40]} 29. f5 {[%clk 0:01:44]}  N3e5 {[%clk 0:00:36]} 30. fxg6 {[%clk 0:01:43]}  hxg6 {[%clk 0:00:31]} 31. Bxd7 {[%clk 0:01:42]}  Qxd7 {[%clk 0:00:24]} 32. Rf4 {[%clk 0:01:31]}  Nf3+ {[%clk 0:00:24]} 33. Rxf3 {[%clk 0:01:24]}  exf3 {[%clk 0:00:24]} 34. Rf1 {[%clk 0:01:20]}  Kh7 {[%clk 0:00:24]} 35. Rxf3 {[%clk 0:01:18]}  Re4 {[%clk 0:00:22]} 36. Qf2 {[%clk 0:01:13]}  Qg4+ {[%clk 0:00:20]} 37. Rg3 {[%clk 0:01:09]}  Qd1+ {[%clk 0:00:20]} 38. Kg2 {[%clk 0:01:03]}  Qxd4 {[%clk 0:00:21]} 39. Qf3 {[%clk 0:00:58]}  Qd2+ {[%clk 0:00:18]} 40. Kh3 {[%clk 0:00:58]}  Rf4 {[%clk 0:00:16]} 41. Qh1 {[%clk 0:00:48]}  Re7 {[%clk 0:00:15]} 42. Qa1 {[%clk 0:00:34]}  Qd4 {[%clk 0:00:12]} 43. Qc1 {[%clk 0:00:22]}  Rh4+ {[%clk 0:00:12]} 44. Kg2 {[%clk 0:00:21]}  Re2+ {[%clk 0:00:12]} 45. Kf1 {[%clk 0:00:20]}  Qf2# {[%clk 0:00:12]} 0-1


[Site "https://www.chess.com"]

[Event "Titled Tuesday Blitz March 21 Early 2023"]
[White "Ciuffoletti, Paolo"]
[Black "dorpato"]
[WhiteFideId "807630"]
[WhiteElo "2143"]
[BlackElo "1991"]
[Result "1-0"]
[Round "05"]
[TimeControl "180+2"]
[Date "2023.03.21"]
[WhiteClock "0:00:06"]
[BlackClock "0:00:01"]

1. e4 {[%clk 0:03:00]}  c5 {[%clk 0:02:57]} 2. d3 {[%clk 0:02:58]}  g6 {[%clk 0:02:57]} 3. Nf3 {[%clk 0:02:54]}  Bg7 {[%clk 0:02:57]} 4. g3 {[%clk 0:02:54]}  Nc6 {[%clk 0:02:53]} 5. Bg2 {[%clk 0:02:54]}  d6 {[%clk 0:02:47]} 6. O-O {[%clk 0:02:53]}  Nf6 {[%clk 0:02:46]} 7. c3 {[%clk 0:02:53]}  O-O {[%clk 0:02:44]} 8. Nbd2 {[%clk 0:02:51]}  b6 {[%clk 0:02:43]} 9. a4 {[%clk 0:02:50]}  Bb7 {[%clk 0:02:43]} 10. Nc4 {[%clk 0:02:50]}  d5 {[%clk 0:02:37]} 11. exd5 {[%clk 0:02:47]}  Nxd5 {[%clk 0:02:36]} 12. Re1 {[%clk 0:02:43]}  e6 {[%clk 0:02:35]} 13. Bg5 {[%clk 0:02:35]}  Qd7 {[%clk 0:02:30]} 14. Qd2 {[%clk 0:02:34]}  Rfe8 {[%clk 0:02:23]} 15. Bh6 {[%clk 0:02:23]}  Rad8 {[%clk 0:01:59]} 16. Bxg7 {[%clk 0:02:18]}  Kxg7 {[%clk 0:01:58]} 17. h4 {[%clk 0:02:15]}  h5 {[%clk 0:01:51]} 18. Nfe5 {[%clk 0:02:03]}  Nxe5 {[%clk 0:01:43]} 19. Nxe5 {[%clk 0:02:02]}  Qc7 {[%clk 0:01:35]} 20. a5 {[%clk 0:01:34]}  Ne7 {[%clk 0:00:58]} 21. axb6 {[%clk 0:01:27]}  axb6 {[%clk 0:00:53]} 22. Ra7 {[%clk 0:01:23]}  Rb8 {[%clk 0:00:39]} 23. Nc4 {[%clk 0:00:42]}  Nc6 {[%clk 0:00:20]} 24. Ne5 {[%clk 0:00:27]}  Nxe5 {[%clk 0:00:19]} 25. Rxb7 {[%clk 0:00:23]}  Rxb7 {[%clk 0:00:18]} 26. Bxb7 {[%clk 0:00:23]}  Qxb7 {[%clk 0:00:18]} 27. Rxe5 {[%clk 0:00:23]}  Qc7 {[%clk 0:00:17]} 28. Qe3 {[%clk 0:00:20]}  Rd8 {[%clk 0:00:17]} 29. Re4 {[%clk 0:00:20]}  Qd6 {[%clk 0:00:16]} 30. d4 {[%clk 0:00:19]}  cxd4 {[%clk 0:00:15]} 31. Rxd4 {[%clk 0:00:20]}  Qe7 {[%clk 0:00:14]} 32. Qe5+ {[%clk 0:00:18]}  Kh7 {[%clk 0:00:12]} 33. Rxd8 {[%clk 0:00:16]}  Qxd8 {[%clk 0:00:12]} 34. Qf4 {[%clk 0:00:16]}  Qd1+ {[%clk 0:00:12]} 35. Kh2 {[%clk 0:00:16]}  Qd7 {[%clk 0:00:10]} 36. b4 {[%clk 0:00:15]}  Kg8 {[%clk 0:00:07]} 37. c4 {[%clk 0:00:15]}  Qc6 {[%clk 0:00:06]} 38. Qd4 {[%clk 0:00:12]}  Qc7 {[%clk 0:00:04]} 39. c5 {[%clk 0:00:12]}  bxc5 {[%clk 0:00:04]} 40. bxc5 {[%clk 0:00:12]}  Kf8 {[%clk 0:00:04]} 41. Qc4 {[%clk 0:00:09]}  Ke7 {[%clk 0:00:04]} 42. Qd4 {[%clk 0:00:09]}  Qc6 {[%clk 0:00:04]} 43. Kg1 {[%clk 0:00:08]}  f6 {[%clk 0:00:04]} 44. Qc4 {[%clk 0:00:07]}  Qd5 {[%clk 0:00:02]} 45. Qb4 {[%clk 0:00:07]}  Qc6 {[%clk 0:00:01]} 46. Qc4 {[%clk 0:00:06]} 1-0


[Site "https://www.chess.com"]